bitfinex/quotes_ETHUSD_20240827
["timestamp","ask_amount","ask_price","bid_price","bid_amount"]
[1724797867353,0.34967354,2449.2,2446.9,9.4057]
[1724797867591,0.4268182,2449.2,2447.0,9.4057]
[1724797867785,0.4268182,2449.2,2447.1,0.94057]
[1724797868381,0.38925687,2449.1,2447.1,0.94057]
[1724797868540,0.4268182,2449.2,2447.1,0.94057]
[1724797869468,0.4268182,2449.2,2447.0,9.4057]
[1724797869469,0.38925687,2449.1,2447.0,9.4057]
[1724797869635,0.4268182,2449.2,2447.0,9.4057]
[1724797870076,4.08347,2448.9,2447.0,9.4057]
[1724797870282,4.95881507,2449.2,2447.0,8.9786]
[1724797870283,4.08321,2449.1,2447.0,8.9786]
[1724797870447,2.0,2448.6,2445.7,6.78005135]
[1724797870662,0.49216709,2448.5,2445.7,6.78005135]
[1724797870864,0.49216709,2448.5,2444.7,6.78005135]
[1724797870865,2.0,2447.9,2444.7,6.78005135]
[1724797871098,7.82221844,2447.8,2444.7,6.78005135]
[1724797871303,7.82221844,2447.8,2443.8,2.0]
[1724797871304,4.08615,2447.3,2444.2,6.78005135]
[1724797871510,4.08615,2447.3,2444.2,7.19506357]
[1724797871511,0.55,2447.2,2444.2,7.19506357]
[1724797871659,0.55,2447.2,2444.3,0.71950636]
[1724797871660,9.8881,2447.1,2444.3,0.71950636]
[1724797871861,9.8881,2447.1,2443.9,1.03464494]
[1724797871862,3.49216709,2447.0,2443.9,1.03464494]
[1724797872059,4.08715,2446.7,2443.7,6.78005135]
[1724797872289,3.23967883,2446.6,2443.8,0.67800514]
[1724797872623,4.08896,2445.7,2442.7,6.78005135]
[1724797872913,3.0,2445.6,2442.8,0.41501222]
[1724797873404,9.8881,2446.2,2442.8,0.41501222]
[1724797873405,0.55,2445.5,2443.3,9.4061]
[1724797873701,3.0,2446.1,2443.8,9.4061]
[1724797873702,0.98881,2446.1,2443.8,9.4061]
[1724797873913,0.05,2448.0,2444.8,6.78005135]
[1724797873914,9.8881,2447.4,2444.8,6.78005135]
[1724797874196,4.57732709,2447.9,2444.9,9.82111222]
[1724797874358,0.49180206,2447.8,2445.0,3.0]
[1724797874559,0.49180206,2447.8,2445.0,9.90287486]
[1724797874861,0.49216709,2447.9,2445.1,0.41501222]
[1724797875091,13.97294,2448.1,2445.2,9.48786094]
[1724797875400,4.08534,2447.8,2445.3,0.08175056]
[1724797875606,0.49216709,2448.0,2445.3,1.03053562]
[1724797875775,0.49216709,2448.0,2445.4,9.6195]
[1724797875981,0.49216709,2448.4,2445.6,9.6195]
[1724797876180,0.58883191,2449.3,2446.0,9.6195]
[1724797876364,0.58883191,2449.3,2445.7,3.4967506]
[1724797876365,9.2029,2449.4,2446.5,6.78005135]
[1724797876565,4.08281,2449.3,2446.7,9.6195]
[1724797876830,9.2029,2449.4,2446.7,9.6195]
[1724797876831,9.27221844,2449.1,2446.7,9.6195]
[1724797876967,4.08416,2448.5,2446.7,9.6195]
[1724797877168,2.43324942,2449.3,2446.8,9.70123305]
[1724797877169,0.4269126,2449.3,2446.8,9.70123305]
[1724797877370,4.08244,2449.6,2447.0,9.6195]
[1724797877610,4.08265,2449.4,2447.0,9.6195]
[1724797877917,4.5099282,2449.2,2447.0,9.6195]
[1724797878102,0.4268182,2449.2,2447.1,0.08171119]
[1724797878285,0.4268182,2449.2,2447.2,0.08170456]
[1724797878608,4.08349,2448.9,2447.0,9.6195]
[1724797878923,0.408349,2448.8,2447.0,9.6195]
[1724797879069,0.4268182,2449.2,2447.0,9.6195]
[1724797879616,2.4268182,2449.2,2447.0,9.6195]
[1724797879819,0.97069175,2449.1,2447.0,9.6195]
[1724797880041,4.08356,2448.9,2447.0,9.6195]
[1724797880173,0.958356,2448.8,2447.0,9.6195]
[1724797880375,12.73840735,2448.8,2446.5,9.1997]
[1724797880622,12.73840735,2448.8,2445.6,6.78005135]
[1724797880623,2.0,2448.2,2445.6,9.1997]
[1724797880772,4.08529,2447.9,2445.7,1.02647036]
[1724797880972,13.67017,2448.4,2445.6,9.1997]
[1724797880973,12.19703593,2447.8,2445.6,9.1997]
[1724797881327,4.08647,2447.1,2445.6,9.1997]
[1724797881466,4.08617,2447.3,2445.6,9.1997]
[1724797881467,0.55,2447.0,2445.6,9.1997]
[1724797882050,0.41698458,2447.4,2445.7,0.08177964]
[1724797882051,0.55,2447.1,2445.7,0.08177964]
[1724797882324,0.958356,2447.3,2445.6,9.1997]
[1724797882475,4.08502,2448.0,2445.6,9.1997]
[1724797882476,9.5858,2448.2,2445.9,9.1997]
[1724797882789,9.5858,2448.8,2446.1,9.1997]
[1724797883110,4.0833,2449.0,2446.3,9.1997]
[1724797883313,4.0833,2449.0,2446.4,9.1997]
[1724797883523,0.42676622,2448.7,2446.4,9.1997]
[1724797883876,4.51057622,2448.7,2446.4,9.1997]
[1724797884181,4.51057622,2448.7,2445.7,41.78005135]
[1724797884182,0.83676622,2448.7,2446.6,9.9537]
[1724797884385,0.83676622,2448.7,2446.7,1.00354261]
[1724797884884,0.83676622,2448.7,2446.6,9.9537]
[1724797885087,0.82698458,2448.6,2446.6,9.9537]
[1724797885303,4.49411,2448.6,2446.7,0.08172736]
[1724797885610,0.41,2448.6,2446.7,9.34072727]
[1724797885821,0.42676622,2448.7,2446.9,9.259]
[1724797886123,0.42676622,2448.7,2447.1,9.259]
[1724797886271,0.42676622,2448.7,2447.2,0.08170216]
[1724797886473,0.42676622,2448.7,2447.1,9.259]
[1724797886668,0.42676622,2448.7,2444.1,4.09132]
[1724797886669,6.78005135,2448.3,2446.6,9.259]
[1724797886895,1.50498972,2448.2,2446.6,9.259]
[1724797887125,1.50498972,2448.2,2446.6,9.2163]
[1724797887126,4.08486,2448.1,2446.6,9.2163]
[1724797887284,1.50498972,2448.2,2446.6,9.2163]
[1724797887285,4.09498972,2448.2,2446.6,9.2163]
[1724797887473,1.16578171,2448.1,2446.6,9.2163]
[1724797887675,0.41,2447.7,2446.6,7.32047436]
[1724797887876,4.08648,2447.1,2444.0,6.78005135]
[1724797888090,4.49602,2447.4,2444.5,6.78005135]
[1724797888393,3.0,2447.3,2444.6,0.51144479]
[1724797888581,0.341,2447.2,2445.0,6.78005135]
[1724797888778,0.341,2447.2,2445.1,0.08174606]
[1724797889113,0.55,2447.1,2445.1,0.51142294]
[1724797889472,0.96,2447.3,2444.7,4.01493556]
[1724797889614,0.96,2447.3,2444.8,0.40149356]
[1724797889615,0.41,2447.0,2444.8,0.40149356]
[1724797889786,0.41,2447.0,2444.5,6.78005135]
[1724797889787,0.2560751,2446.9,2444.5,6.78005135]
[1724797890126,3.0,2447.0,2444.5,6.78005135]
[1724797890277,0.80606618,2446.9,2444.5,6.78005135]
[1724797890612,0.55,2446.9,2444.6,1.10768202]
[1724797890809,0.96,2447.1,2444.7,9.8478]
[1724797891019,0.66607395,2446.8,2444.7,9.8478]
[1724797891344,4.49788,2446.3,2444.7,9.8478]
[1724797891481,0.41,2446.0,2444.7,9.8478]
[1724797891681,0.25607395,2445.9,2444.7,9.8478]
[1724797892132,0.449544,2446.2,2444.7,9.8478]
[1724797892133,0.55,2445.8,2444.7,9.8478]
[1724797892287,0.2561662,2445.7,2444.7,9.8478]
[1724797892622,0.55,2445.6,2444.7,9.8478]
[1724797892941,0.41,2445.9,2443.0,6.78005135]
[1724797893236,10.9450774,2446.0,2443.0,6.78005135]
[1724797893237,0.41,2445.7,2443.1,1.1895075]
[1724797893380,0.2562124,2445.6,2443.2,0.08182524]
[1724797893580,0.55,2445.6,2443.1,1.1894992]
[1724797893824,0.2562022,2445.5,2443.2,4.44461244]
[1724797893993,0.55,2445.4,2443.3,0.51149779]
[1724797894197,0.46102205,2445.8,2443.5,6.78005135]
[1724797894394,0.41,2446.6,2443.6,3.42967688]
[1724797894610,0.25613408,2446.5,2443.6,3.42967688]
[1724797894812,0.41,2446.3,2443.6,3.42967688]
[1724797894995,0.47538871,2446.2,2443.7,1.4506497]
[1724797895332,4.34428916,2446.1,2443.7,1.02097282]
[1724797895488,0.47538871,2446.2,2443.8,0.08181002]
[1724797895690,0.55,2446.1,2443.8,0.08181002]
[1724797895893,0.85290661,2447.2,2443.8,0.08181002]
[1724797895894,10.86598135,2447.5,2444.1,9.1877]
[1724797896192,0.25607423,2447.4,2444.6,9.1877]
[1724797896498,1.639914,2447.1,2444.8,9.1877]
[1724797896695,0.41,2447.3,2444.8,10.40647]
[1724797896887,0.25604874,2447.2,2445.0,9.1877]
[1724797897135,9.7271,2448.3,2445.2,9.1877]
[1724797897380,0.71842073,2448.2,2446.0,6.78005135]
[1724797897679,0.42676622,2448.7,2446.2,9.1877]
[1724797898059,0.42676622,2448.7,2446.4,9.1877]
[1724797898233,0.42676622,2448.7,2446.6,9.1877]
[1724797898430,0.42676622,2448.7,2446.8,9.8899]
[1724797899079,0.25588085,2448.6,2446.8,9.8899]
[1724797899234,0.42676622,2448.7,2446.8,9.8899]
[1724797899433,0.2558723,2448.6,2446.8,9.8899]
[1724797899629,0.40770123,2448.5,2446.9,0.08171917]
[1724797899828,0.42676622,2448.7,2446.8,9.8899]
[1724797899829,0.83446745,2448.7,2446.8,9.8899]
[1724797900061,0.25590036,2448.6,2446.8,9.8899]
[1724797900383,4.76656622,2448.6,2446.8,9.8899]
[1724797900534,1.73102833,2448.5,2446.8,9.8899]
[1724797900765,1.73102833,2448.5,2445.1,0.92694664]
[1724797900766,2.0,2448.2,2445.1,0.92694664]
[1724797900965,9.7245,2447.8,2445.2,9.4417]
[1724797901174,0.41,2447.6,2445.4,9.4417]
[1724797901465,0.88791671,2447.7,2445.4,9.4417]
[1724797901466,3.88791671,2447.7,2445.4,9.4417]
[1724797901719,21.44187796,2448.4,2445.3,1.03686466]
[1724797901720,0.25600132,2447.5,2445.5,9.94117808]
[1724797901872,3.0,2448.1,2445.7,9.4417]
[1724797902069,0.25595814,2448.0,2445.9,9.4417]
[1724797902271,0.076212,2448.5,2446.1,9.4417]
[1724797902582,0.076212,2448.5,2446.0,9.4417]
[1724797902583,0.25591448,2448.4,2446.0,9.4417]
[1724797902807,4.34050448,2448.3,2446.0,9.4417]
[1724797902971,4.08524,2447.9,2446.0,9.4417]
[1724797903332,0.41,2447.6,2446.0,9.4417]
[1724797903485,0.41,2447.1,2444.2,9.4417]
[1724797903812,0.25607021,2447.0,2444.3,9.4417]
[1724797904020,4.75302021,2446.9,2444.3,9.4417]
[1724797904218,4.08717,2446.7,2444.4,1.01197051]
[1724797904555,4.79412217,2446.6,2444.5,9.4417]
[1724797904733,0.25607021,2446.5,2444.5,9.4417]
[1724797905007,0.85290661,2446.3,2444.6,0.08180464]
[1724797905215,0.55,2446.4,2444.6,0.86206554]
[1724797905506,0.85290661,2446.2,2444.6,0.08180058]
[1724797906022,0.55,2446.1,2444.6,0.08180063]
[1724797906183,0.55,2446.1,2444.6,1.0840985]
[1724797906384,0.55,2446.1,2444.7,9.1662]
[1724797906774,0.85290661,2446.5,2444.9,9.1662]
[1724797906970,0.6290691,2446.8,2445.1,9.1662]
[1724797907198,0.85290661,2447.1,2445.3,9.1662]
[1724797907511,0.85290661,2447.1,2445.2,0.0817646]
[1724797907512,0.85290661,2447.3,2445.5,9.1662]
[1724797907704,0.85290661,2447.0,2445.5,9.1662]
[1724797907943,0.85290661,2446.5,2445.5,9.1662]
[1724797908235,0.85290661,2446.2,2445.5,9.1662]
[1724797908442,0.21322665,2446.1,2445.5,9.1662]
[1724797908730,0.85290661,2446.1,2445.5,9.1662]
[1724797908950,1.40290661,2446.0,2445.5,9.1662]
[1724797909094,0.55,2446.0,2445.1,9.1662]
[1724797909910,4.40290661,2446.1,2445.1,9.1662]
[1724797910118,4.40290661,2446.1,2444.4,0.49947808]
[1724797910119,0.85290661,2446.3,2445.2,0.08178545]
[1724797910323,0.85290661,2447.0,2445.2,9.1662]
[1724797910530,0.85290661,2446.9,2445.2,9.1662]
[1724797910821,0.85290661,2446.8,2445.3,9.1662]
[1724797911031,1.06613326,2446.7,2445.3,9.1662]
[1724797911239,0.85290661,2446.4,2445.3,9.1662]
[1724797911444,0.85290661,2446.3,2445.3,9.1662]
[1724797911940,0.85290661,2446.1,2445.3,9.1662]
[1724797912166,0.55,2446.0,2445.3,9.1662]
[1724797912373,0.44029066,2445.9,2445.3,9.1662]
[1724797912526,0.44029066,2445.9,2444.7,9.1662]
[1724797912527,0.85290661,2445.7,2444.7,9.1662]
[1724797912724,0.85290661,2445.5,2444.2,9.1662]
[1724797912968,0.85290661,2445.2,2444.2,9.1662]
[1724797913170,1.40290661,2445.4,2444.3,0.08181381]
[1724797913386,1.40290661,2445.4,2444.2,9.1662]
[1724797913387,1.03359949,2445.4,2444.2,9.1662]
[1724797913538,0.55,2445.4,2444.4,9.317]
[1724797913741,0.55,2445.4,2444.5,0.08179561]
[1724797913966,0.55,2445.4,2444.5,1.07162298]
[1724797914393,0.85290661,2446.1,2444.6,9.317]
[1724797914571,2.13226653,2446.4,2444.8,9.317]
[1724797914896,2.11828882,2446.8,2445.0,9.317]
[1724797914897,0.21322665,2446.3,2445.0,9.317]
[1724797915044,0.85290661,2446.5,2445.0,9.317]
[1724797915391,0.85290661,2446.1,2445.0,9.317]
[1724797915555,0.85290661,2446.2,2445.0,9.317]
[1724797915742,0.21322665,2446.1,2445.0,9.317]
[1724797915949,0.85290661,2446.2,2445.0,9.317]
[1724797916498,1.2796028,2446.4,2445.0,9.19578448]
[1724797916661,0.85290661,2446.2,2445.0,9.19578448]
[1724797917278,0.85290661,2446.1,2445.0,9.19578448]
[1724797917473,0.85290661,2446.0,2445.0,9.19578448]
[1724797917651,0.85290661,2445.8,2445.0,9.19578448]
[1724797917853,0.55,2445.7,2445.0,9.19578448]
[1724797918282,1.40290661,2445.7,2445.0,9.19578448]
[1724797918488,0.85290661,2445.6,2443.4,35.0]
[1724797918667,1.40290661,2445.5,2443.6,6.78005135]
[1724797918880,4.11822665,2445.5,2443.7,0.54960752]
[1724797919059,4.11822665,2445.5,2443.1,6.78005135]
[1724797919060,0.85290661,2445.4,2443.1,6.78005135]
[1724797919264,0.85290661,2445.2,2443.2,0.67800514]
[1724797919465,0.85290661,2445.1,2443.2,0.67800514]
[1724797919660,0.55,2445.0,2443.2,0.67800514]
[1724797919862,0.85290661,2444.9,2442.9,0.41381141]
[1724797920077,0.55,2444.8,2443.3,0.41381141]
[1724797920282,0.55,2444.8,2443.1,6.78005135]
[1724797920283,0.55,2444.8,2443.2,0.41381141]
[1724797920494,0.55,2444.9,2443.2,0.41381141]
[1724797920657,0.85,2444.9,2443.3,4.01493556]
[1724797920853,0.85,2444.9,2442.6,6.78005135]
[1724797920854,0.55,2444.9,2442.6,6.78005135]
[1724797921056,4.63992,2445.1,2442.1,9.06675135]
[1724797921276,4.63992,2445.1,2442.2,0.99085175]
[1724797921277,0.41,2444.7,2442.2,0.99085175]
[1724797921488,0.41,2444.7,2442.1,2.2867]
[1724797921489,6.78005135,2444.4,2442.1,9.3285]
[1724797921794,3.55,2444.3,2442.1,9.3285]
[1724797921978,16.64165135,2443.9,2442.1,9.3285]
[1724797922185,4.39880798,2443.8,2442.0,0.8417661]
[1724797922353,4.50241,2443.6,2442.0,0.8417661]
[1724797922556,0.41,2443.3,2442.0,0.8417661]
[1724797922754,0.55,2443.2,2442.0,0.8417661]
[1724797923059,6.78005135,2442.9,2442.0,0.8417661]
[1724797923386,4.00330882,2442.8,2442.0,0.8417661]
[1724797923699,0.55,2442.8,2442.0,0.8417661]
[1724797923867,7.74005135,2442.9,2442.0,0.8417661]
[1724797924071,3.0,2442.8,2442.0,0.8417661]
[1724797924290,0.55,2442.7,2442.0,0.8417661]
[1724797925361,0.55,2442.8,2442.0,0.8417661]
[1724797925760,0.41,2443.4,2442.0,0.92366947]
[1724797925980,4.09215,2443.7,2442.0,0.8417661]
[1724797926183,10.00076229,2443.8,2442.0,0.8417661]
[1724797926499,4.09296,2443.3,2442.0,0.8417661]
[1724797926722,5.09397313,2443.2,2442.0,0.8417661]
[1724797926876,5.09397313,2443.2,2441.7,9.8713]
[1724797926877,0.41,2443.1,2441.7,9.8713]
[1724797927060,1.85386974,2443.2,2441.7,9.8713]
[1724797927256,0.51322665,2443.1,2441.7,9.8713]
[1724797927455,0.51322665,2443.1,2441.1,0.0465344]
[1724797927456,14.32112,2443.0,2441.1,9.1690344]
[1724797927716,3.0,2442.9,2441.2,0.08192015]
[1724797927860,0.51322665,2443.1,2441.4,9.1225]
[1724797928055,0.85290661,2443.2,2441.6,9.1472]
[1724797928888,0.85290661,2443.2,2441.7,0.08190552]
[1724797929091,0.85290661,2443.2,2441.6,9.1472]
[1724797929497,0.85290661,2443.2,2441.7,0.08189807]
[1724797929815,9.3842,2443.0,2441.6,9.1472]
[1724797930101,0.41,2442.8,2441.1,9.8095344]
[1724797930287,1.80415211,2442.7,2441.1,9.8095344]
[1724797930601,4.0945,2442.3,2441.1,0.0465344]
[1724797930809,3.55,2442.2,2441.1,0.0465344]
[1724797930988,0.41,2441.9,2441.1,0.0465344]
[1724797931312,0.41,2441.7,2441.1,0.0465344]
[1724797931609,0.55,2441.6,2441.1,0.0465344]
[1724797931907,0.55,2441.8,2441.1,0.04188097]
[1724797932125,3.0,2442.0,2441.1,0.04188097]
[1724797932126,0.55,2441.9,2441.1,0.04188097]
[1724797932268,1.4421168,2441.9,2441.1,0.04188097]
[1724797933030,1.8528168,2441.9,2441.1,0.04188097]
[1724797933363,0.4107,2441.8,2441.1,0.04188097]
[1724797933690,0.55,2441.7,2441.1,0.04188097]
[1724797933903,0.505604,2441.6,2440.0,9.763]
[1724797934205,0.55,2441.5,2440.0,9.763]
[1724797934414,4.09615,2441.4,2440.0,9.763]
[1724797934567,0.55,2441.3,2440.0,9.763]
[1724797934766,7.09603,2441.4,2440.0,9.763]
[1724797934965,0.55,2441.3,2440.0,9.763]
[1724797935219,9.7949,2441.2,2438.7,9.763]
[1724797935386,3.0,2441.1,2439.2,9.763]
[1724797935580,0.55,2441.3,2439.2,9.763]
[1724797935581,0.44497395,2441.2,2439.2,9.763]
[1724797935776,0.55,2441.1,2439.2,9.763]
[1724797935977,0.55,2441.1,2439.3,0.9763]
[1724797936505,0.55,2441.1,2439.2,9.763]
[1724797936672,0.55,2441.1,2439.3,0.08198417]
[1724797937082,0.55,2441.1,2439.4,9.0441]
[1724797937419,3.0,2441.1,2439.4,9.0441]
[1724797937765,4.09679,2441.0,2439.4,9.0441]
[1724797938123,3.0,2441.1,2439.4,9.0441]
[1724797938124,3.709679,2440.9,2439.5,0.08198401]
[1724797938310,3.25085191,2441.1,2439.4,9.0441]
[1724797938517,3.0,2440.8,2439.4,9.0441]
[1724797938719,0.3,2440.7,2439.4,9.0441]
[1724797939016,0.24650754,2441.2,2439.4,9.0441]
[1724797939224,4.09712,2440.8,2439.4,9.0441]
[1724797939429,6.78005135,2439.9,2438.7,9.0441]
[1724797939584,4.63483457,2439.8,2438.7,9.0441]
[1724797939783,4.09886,2439.7,2438.6,0.1227464]
[1724797939988,4.08609457,2439.8,2438.6,0.1227464]
[1724797939989,4.08609457,2439.6,2438.6,0.1227464]
[1724797940219,3.55,2439.8,2438.6,0.1227464]
[1724797940427,0.55,2439.8,2438.6,0.1227464]
[1724797940731,3.355,2439.7,2438.6,0.1227464]
[1724797940880,3.0,2439.6,2438.7,9.0441]
[1724797941220,0.55,2439.5,2438.7,9.0441]
[1724797942023,7.03380073,2439.5,2438.6,0.1227464]
[1724797942324,3.70338007,2439.4,2438.6,0.1227464]
[1724797942489,0.55,2439.3,2438.6,0.1227464]
[1724797943096,3.0,2439.4,2438.6,0.1227464]
[1724797943389,6.48380073,2440.3,2438.7,9.80590512]
[1724797943909,6.70729587,2440.7,2438.7,9.80590512]
[1724797944111,6.48380073,2440.7,2438.7,9.7239]
[1724797944295,6.48380073,2441.1,2438.8,9.80587363]
[1724797944495,4.09542,2441.8,2439.2,9.7239]
[1724797944496,6.48380073,2441.8,2439.2,9.7239]
[1724797944796,6.0938,2442.8,2440.8,9.7239]
[1724797944797,0.07120379,2442.8,2440.8,9.7239]
[1724797945025,0.07120379,2442.8,2441.2,9.7239]
[1724797945184,0.42445258,2442.8,2441.5,6.48380073]
[1724797945386,1.642176,2443.9,2441.9,6.48380073]
[1724797945745,1.642176,2443.9,2442.1,9.7239]
[1724797945880,0.42793255,2443.8,2442.3,9.7239]
[1724797946085,0.59294601,2444.7,2442.5,9.7239]
[1724797946408,0.42784968,2445.0,2443.3,6.79723841]
[1724797946736,0.59294601,2446.3,2443.5,9.7239]
[1724797946883,10.15809406,2446.4,2443.7,9.7239]
[1724797947085,10.15809406,2446.4,2443.6,36.06237601]
[1724797947086,6.79723841,2445.5,2443.8,9.7239]
[1724797947387,0.72248579,2445.4,2443.8,9.7239]
[1724797947618,6.79723841,2446.0,2444.0,9.7239]
[1724797947619,0.42763178,2445.5,2444.0,9.7239]
[1724797947921,0.42763178,2445.5,2444.1,0.08181228]
[1724797948135,0.42763178,2445.5,2444.0,9.7239]
[1724797949720,6.79723841,2445.0,2443.4,9.4466]
[1724797950090,9.6628,2445.4,2443.5,0.08185186]
[1724797950286,0.42763178,2445.5,2443.6,9.4466]
[1724797950587,0.42763178,2445.5,2443.8,9.3059]
[1724797950890,11.17755646,2446.5,2444.0,9.3059]
[1724797951236,11.17755646,2446.5,2443.4,3.0]
[1724797951237,0.42756902,2445.8,2444.2,9.1112]
[1724797951438,8.79723841,2446.0,2444.2,9.1112]
[1724797951587,0.4276277,2445.7,2444.2,9.1112]
[1724797951983,6.79723841,2445.5,2443.7,9.1112]
[1724797952215,4.08961,2445.3,2443.7,9.1112]
[1724797952433,6.79723841,2445.0,2443.7,9.1112]
[1724797952732,3.0,2445.2,2443.7,9.1112]
[1724797953037,0.3,2445.1,2443.9,9.1831]
[1724797953201,0.4276277,2445.7,2442.7,6.79723841]
[1724797953202,0.4276277,2445.7,2444.1,9.1831]
[1724797953389,0.4276277,2445.7,2442.8,0.05]
[1724797953390,0.4276277,2445.7,2444.3,9.1831]
[1724797953589,6.79723841,2446.5,2444.5,9.1831]
[1724797953590,0.679724,2446.5,2444.5,9.1831]
[1724797953819,0.42750327,2446.2,2444.7,9.1831]
[1724797954137,0.42750327,2446.2,2444.8,9.26488018]
[1724797954429,9.4945,2447.4,2445.0,9.1831]
[1724797954599,1.639497,2447.8,2445.2,15.98033841]
[1724797954808,0.427438,2446.5,2445.3,11.48538017]
[1724797955018,4.2068764,2448.5,2445.9,9.1831]
[1724797955220,0.36376472,2447.5,2446.1,9.1831]
[1724797955487,6.79723841,2448.1,2446.1,9.1831]
[1724797955727,0.40293139,2447.9,2446.2,0.08173975]
[1724797955902,0.42732681,2447.4,2446.4,9.1831]
[1724797956113,0.1227464,2448.5,2446.6,9.1831]
[1724797956427,0.42729825,2448.2,2446.6,9.1831]
[1724797956642,0.1227464,2448.5,2445.9,0.97972384]
[1724797956643,0.1227464,2448.5,2446.7,9.26481805]
[1724797956925,0.42717942,2448.1,2446.7,9.1831]
[1724797957179,4.08463,2448.2,2446.7,9.1831]
[1724797957297,4.44561485,2448.1,2446.7,9.1831]
[1724797957492,0.42726546,2448.0,2446.7,9.1831]
[1724797957989,9.7823,2447.8,2444.7,6.79723841]
[1724797958229,0.36078485,2447.9,2445.2,6.79723841]
[1724797958230,1.03728803,2447.9,2445.2,6.79723841]
[1724797958445,0.42726546,2448.0,2445.3,0.59329697]
[1724797958592,0.42726546,2448.0,2445.3,35.59329697]
[1724797958794,0.42726546,2448.0,2445.7,6.79723841]
[1724797959039,0.42726546,2448.0,2445.8,0.08173058]
[1724797959290,0.42726546,2448.0,2445.8,0.7390531]
[1724797959524,0.42726546,2448.0,2445.3,3.0]
[1724797959525,4.08514,2447.9,2445.3,3.0]
[1724797959722,0.42726546,2448.0,2445.2,6.79723841]
[1724797960031,0.55,2447.9,2445.3,0.0817438]
[1724797960238,0.55,2447.9,2445.3,0.73580442]
[1724797960404,8.06325735,2447.9,2445.3,0.73580442]
[1724797960590,3.55,2447.9,2445.4,0.08174375]
[1724797960969,0.55,2447.9,2445.5,9.9297]
[1724797961258,4.0855,2447.7,2445.7,9.9297]
[1724797961404,7.51386735,2447.6,2445.8,0.08177054]
[1724797961746,4.08604,2447.4,2445.7,9.9297]
[1724797962055,4.08604,2447.4,2444.7,6.79723841]
[1724797962056,3.55,2447.3,2445.8,10.01146181]
[1724797962201,0.42726546,2448.0,2445.8,10.01146181]
[1724797962406,0.42726546,2448.0,2446.0,9.9297]
[1724797962643,0.42726546,2448.0,2446.1,9.9297]
[1724797963116,0.42726546,2448.0,2446.2,0.0817333]
[1724797963332,4.08542,2447.8,2446.3,9.9297]
[1724797963648,4.94038281,2448.0,2446.3,9.9297]
[1724797963815,4.08625,2447.3,2446.3,9.9297]
[1724797964014,0.408625,2447.2,2446.3,9.9297]
[1724797964220,4.08593,2447.5,2446.3,9.9297]
[1724797964429,4.08635,2447.2,2444.8,9.9297]
[1724797964674,4.08635,2447.2,2443.5,2.3519]
[1724797964675,4.08742,2446.6,2445.0,9.9297]
[1724797964931,0.42811735,2446.7,2445.0,9.9297]
[1724797965150,10.88420841,2446.8,2445.0,9.9297]
[1724797965151,0.99675045,2446.6,2445.0,9.9297]
[1724797965649,4.63748,2446.5,2445.0,9.9297]
[1724797965849,3.0,2446.4,2445.0,9.9297]
[1724797966005,4.63792,2446.3,2445.0,9.9297]
[1724797966204,0.408593,2446.2,2445.0,9.9297]
[1724797966444,3.408593,2446.2,2445.1,0.08179996]
[1724797966640,0.55,2446.1,2445.0,9.9297]
[1724797966844,4.08664,2447.0,2445.3,9.9297]
[1724797967055,4.0868,2446.9,2445.3,9.9297]
[1724797967216,0.40868,2446.8,2445.3,9.9297]
[1724797967421,0.40868,2446.8,2445.4,0.08177692]
[1724797967730,0.4107,2447.1,2445.5,9.6236]
[1724797968108,0.4107,2447.1,2445.6,0.08175418]
[1724797968339,4.48596774,2447.9,2445.7,9.6881]
[1724797968547,4.08626,2447.3,2445.7,9.6881]
[1724797968712,4.49606,2447.8,2445.7,9.6881]
[1724797968713,0.4107,2447.6,2445.7,9.6881]
[1724797968912,6.79723841,2447.8,2445.7,9.6881]
[1724797969107,0.91403413,2447.7,2445.8,9.91884879]
[1724797969374,0.42726546,2448.0,2445.8,9.91884879]
[1724797969525,0.42726546,2448.0,2446.0,9.8371]
[1724797969724,4.51223546,2448.0,2446.2,9.8371]
[1724797970046,4.51223546,2448.0,2445.5,3.0]
[1724797970047,0.45122355,2447.9,2445.7,9.0609]
[1724797970213,0.42726546,2448.0,2445.7,9.0609]
[1724797970409,0.42726546,2448.0,2445.8,0.08172837]
[1724797970673,0.42726546,2448.0,2445.6,9.5561]
[1724797970830,4.08575,2447.6,2445.6,9.5561]
[1724797971156,4.494475,2447.5,2445.7,0.08175185]
[1724797971356,4.08555,2447.7,2445.2,6.79723841]
[1724797971357,4.08555,2447.7,2445.8,9.5561]
[1724797971655,4.08517,2447.9,2445.8,9.5561]
[1724797971656,0.408555,2447.6,2445.9,9.63785053]
[1724797971853,0.42726546,2448.0,2445.9,9.4561]
[1724797972193,0.42726546,2448.0,2446.0,0.08172888]
[1724797972378,0.42726546,2448.0,2445.6,0.08172825]
[1724797972516,0.4107,2447.9,2445.5,0.53207956]
[1724797972713,0.49230555,2447.8,2445.2,6.79723841]
[1724797972913,0.49230555,2447.8,2445.4,0.53207956]
[1724797972914,4.57775555,2447.8,2445.4,0.53207956]
[1724797973111,0.49230555,2447.8,2445.5,0.08174724]
[1724797973314,0.68324333,2447.7,2445.6,0.08173019]
[1724797973546,0.68324333,2447.7,2445.2,6.79723841]
[1724797973547,0.25598253,2447.6,2445.3,3.0]
[1724797973757,0.25598253,2447.5,2445.4,0.97972384]
[1724797973913,0.42726729,2447.7,2445.4,0.97972384]
[1724797974115,0.25598602,2447.6,2445.7,6.43865468]
[1724797974340,0.42726729,2447.7,2445.8,0.08173187]
[1724797974341,0.25598602,2447.5,2445.8,0.08173187]
[1724797974552,0.25598602,2447.4,2445.8,0.08173187]
[1724797974760,0.25598602,2447.3,2445.8,0.73377052]
[1724797974973,0.42726729,2447.7,2446.5,6.43865468]
[1724797975174,0.25593688,2447.6,2446.6,9.15921515]
[1724797975461,0.1227464,2448.5,2447.5,9.0775]
[1724797975632,0.1227464,2448.5,2447.9,9.5903]
[1724797975836,0.1227464,2448.5,2448.1,9.5903]
[1724797976057,0.1227464,2448.5,2447.2,0.53207956]
[1724797976058,0.4267935,2450.0,2448.3,9.5903]
[1724797976257,0.4267935,2450.0,2448.2,6.52032389]